fUST/lending_fUST_20250820
["ID","MTS","AMOUNT","RATE_DAILY","PERIOD"]
[380293794,1755641441343,-466.72268674,0.00024257,2]
[380293796,1755641441352,-500.0,0.00024257,2]
[380293797,1755641441362,-660.0,0.00024295,2]
[380293799,1755641441372,-151.0,0.000243,8]
[380293801,1755641441381,-352.56,0.00024344,3]
[380293802,1755641441390,-13015.73206453,0.00024353,2]
[380293804,1755641441399,-972.0,0.00024368,2]
[380293806,1755641441409,-637.0,0.00024368,2]
[380293807,1755641441418,-2153.0,0.00024368,2]
[380293809,1755641441427,-916.0,0.00024371,2]
[380293811,1755641441437,-302.9,0.00024383,2]
[380293813,1755641441447,-151.0,0.000244,7]
[380293814,1755641441458,-2058.53321177,0.00024439,2]
[380293816,1755641441468,-168.0,0.00024444,2]
[380293818,1755641441478,-213.63565931,0.00024457,2]
[380293819,1755641441487,-179.0,0.00024556,2]
[380293821,1755641441499,-153.0,0.00024575,2]
[380293823,1755641441508,-153.0,0.00024575,2]
[380293825,1755641441518,-153.0,0.00024575,2]
[380293826,1755641441528,-351.0605393,0.00024575,2]
[380293828,1755641441538,-580.8939941,0.00024575,2]
[380293830,1755641441547,-151.0,0.000246,5]
[380293831,1755641441557,-1899.15,0.000246,7]
[380293833,1755641441567,-916.0,0.00024645,2]
[380293835,1755641441577,-500.0,0.00024658,2]
[380293836,1755641441586,-3442.77671923,0.00024679,2]
[380293838,1755641441595,-1108.0,0.00024689,2]
[380293840,1755641441605,-151.0,0.000247,10]
[380293842,1755641441618,-5504.01,0.000247,7]
[380293843,1755641441628,-160.0,0.000247,7]
[380293845,1755641441637,-1504.45298125,0.00024768,2]
[380293847,1755641441646,-1500.0,0.00024768,2]
[380293848,1755641441655,-1500.0,0.00024768,2]
[380293850,1755641441663,-423.52968532,0.00024773,2]
[380293852,1755641441672,-2799.90566291,0.000248,2]
[380293854,1755641441681,-151.0,0.000248,10]
[380293855,1755641441691,-13788.19,0.000248,7]
[380293857,1755641441701,-843.93972674,0.000248,7]
[380293859,1755641441709,-1000.0,0.000248,2]
[380293860,1755641441719,-51766.9119827,0.000248,2]
[380293862,1755641441728,-151.0,0.000248,7]
[380293864,1755641441737,-151.0,0.000248,7]
[380293866,1755641441746,-151.0,0.000248,7]
[380293867,1755641441755,-152.45789,0.000248,7]
[380293869,1755641441764,-151.0,0.000248,7]
[380293871,1755641441773,-151.0,0.000248,7]
[380293872,1755641441783,-151.0,0.000248,7]
[380293874,1755641441792,-1009.90902439,0.00024805,2]
[380293876,1755641441802,-928.64489645,0.00024817,2]
[380293878,1755641441811,-253.11040705,0.00024817,2]
[380293879,1755641441821,-1011.42918656,0.00024817,2]
[380293881,1755641441831,-284.04408466,0.00024817,2]
[380293883,1755641441842,-1136.17633863,0.00024817,2]
[380293884,1755641441851,-2556.39676193,0.00024817,2]
[380293886,1755641441862,-4544.70535453,0.00024817,2]
[380293888,1755641441871,-3710.86500621,0.00024817,2]
[380293889,1755641441880,-7094.00101434,0.00024817,2]
[380293891,1755641441889,-1331.900067,0.00024819,2]
[380293893,1755641441899,-760.0,0.00024843,2]
[380293895,1755641441908,-153.0,0.00024849,2]
[380293896,1755641441918,-153.0,0.00024849,2]
[380293898,1755641441927,-153.0,0.00024849,2]
[380293900,1755641441936,-2058.53321177,0.00024852,2]
[380293901,1755641441946,-1108.0,0.00024866,2]
[380293903,1755641441955,-500.0,0.00024873,2]
[380293905,1755641441965,-500.0,0.00024873,2]
[380293907,1755641441975,-500.0,0.00024873,2]
[380293908,1755641441985,-500.0,0.00024873,2]
[380293910,1755641441995,-181.301359,0.00024873,2]
[380293912,1755641442005,-500.16719209,0.00024873,2]
[380293914,1755641442014,-500.0,0.00024873,2]
[380293915,1755641442024,-3045.11246957,0.0002489,2]
[380293917,1755641442034,-39577.67,0.000249,2]
[380293919,1755641442045,-208.617058,0.000249,7]
[380293921,1755641442056,-152.373275,0.000249,7]
[380293922,1755641442069,-151.0,0.000249,7]
[380293924,1755641442080,-170.397068,0.000249,7]
[380293926,1755641442090,-170.397068,0.000249,7]
[380293928,1755641442101,-170.397068,0.000249,7]
[380293929,1755641442113,-170.397068,0.000249,7]
[380293931,1755641442123,-151.0,0.000249,7]
[380293933,1755641442132,-151.0,0.000249,7]
[380293935,1755641442142,-439154.50547851,0.000249,2]
[380293937,1755641442157,-1702.2,0.000249,2]
[380293939,1755641442169,-5333.37075141,0.000249,2]
[380293941,1755641442181,-6594.80932481,0.000249,2]
[380293943,1755641442192,-534.94906441,0.000249,2]
[380293944,1755641442203,-1372.13797745,0.000249,2]
[380293946,1755641442215,-1249.0500665,0.000249,2]
[380293948,1755641442226,-813.62704925,0.000249,2]
[380293950,1755641442237,-50837.4329852,0.000249,2]
[380293956,1755641442280,-172.50297172,0.00019556,2]
[380293958,1755641442290,-193.56408258,0.00023768,2]
[380294013,1755641443539,-500.0,0.00020312,2]
[380294015,1755641443549,-214.43591742,0.00023768,2]
[380294017,1755641443559,-151.0,0.000248,7]
[380294019,1755641443568,-4134.56408258,0.000249,2]
[380294310,1755641446337,-270.02834826,0.00020312,2]
[380294312,1755641446347,-480.0,0.00021984,2]
[380294314,1755641446356,-151.0,0.000248,7]
[380294316,1755641446366,-151.0,0.000248,7]
[380294317,1755641446375,-747.53,0.0002489,10]
[380294318,1755641446385,-7046.44165086,0.000249,2]
[380295839,1755641774757,6988.56137853,0.00018422,2]
[380295840,1755641774780,3011.43862147,0.00018422,2]
[380295841,1755641842427,1654.47366837,0.000186,2]
[380295843,1755641994099,19334.08771016,0.00018467,2]
[380295844,1755641994121,49.80394614,0.00018467,2]
[380295845,1755641998721,1802.73699337,0.000186,2]
[380295846,1755642007444,5000.0,0.000186,2]
[380295847,1755642008599,6136.8546496,0.00018505,2]
[380295848,1755642024051,5000.0,0.000186,2]
[380295849,1755642039669,5000.0,0.000186,2]
[380295850,1755642055357,1010.60441089,0.000186,2]
[380295851,1755642055380,3989.39558911,0.000186,2]
[380295852,1755642071696,5000.0,0.000186,2]
[380295853,1755642086877,5000.0,0.000186,2]
[380295854,1755642102177,5000.0,0.000186,2]
[380295855,1755642118548,5000.0,0.000186,2]
[380295856,1755642133752,10.60441089,0.000186,2]
[380295857,1755642133776,4989.39558911,0.000186,2]
[380295858,1755642149537,5000.0,0.000186,2]
[380295859,1755642164690,5000.0,0.000186,2]
[380295860,1755642179949,5000.0,0.000186,2]
[380295861,1755642195857,4010.60441089,0.000186,2]
[380295862,1755642195880,989.39558911,0.000186,2]
[380295863,1755642211255,5000.0,0.000186,2]
[380295864,1755642227363,4643.90011593,0.000186,2]
[380295865,1755642243903,3797.00375585,0.000186,2]
[380295866,1755642259325,1559.09612822,0.000186,2]
[380295867,1755642274284,4643.90011593,0.000186,2]
[380295868,1755642290311,3366.70429496,0.000186,2]
[380295869,1755642290335,430.29946089,0.000186,2]
[380295870,1755642306212,1559.09612822,0.000186,2]
[380295871,1755642308074,272.36045322,0.00018346,2]
[380295872,1755642308098,1373.70181258,0.00018346,2]
[380295873,1755642321699,5000.0,0.000186,2]
[380295874,1755642329829,203.37764492,0.00018562,2]
[380295875,1755642337481,5000.0,0.000186,2]
[380295877,1755642353881,272.36045322,0.000186,2]
[380295878,1755642385263,268.042008,0.00013699,2]
[380295879,1755642438136,-176.7682497,0.00018662,2]
[380295880,1755642438158,-2388.40604208,0.000189,2]
[380295881,1755642438180,-195.35379498,0.00019075,2]
[380295882,1755642438202,-1200.0,0.00019174,2]
[380295883,1755642438224,-300.0,0.00019174,2]
[380295884,1755642438247,-300.0,0.00019175,2]
[380295885,1755642438268,-300.0,0.00019175,2]
[380295886,1755642438292,-1200.0,0.00019175,2]
[380295887,1755642438313,-300.0,0.00019175,2]
[380295888,1755642438334,-300.0,0.00019175,2]
[380295889,1755642438355,-272.0,0.00019178,2]
[380295890,1755642438376,-480.0,0.00019178,2]
[380295891,1755642438397,-480.0,0.00019178,2]
[380295892,1755642438418,-480.0,0.00019178,2]
[380295893,1755642438440,-480.0,0.00019178,2]
[380295894,1755642438463,-436.96275505,0.00019178,2]
[380295895,1755642438486,-153.39,0.00019178,2]
[380295896,1755642438508,-480.0,0.00019178,2]
[380295897,1755642438532,-480.0,0.00019178,2]
[380295898,1755642438554,-480.0,0.00019178,2]
[380295899,1755642438579,-615.45,0.00019178,2]
[380295900,1755642438600,-666.0,0.00019178,2]
[380295901,1755642438621,-723.74341622,0.0001941,2]
[380295902,1755642438643,-480.0,0.00019452,2]
[380295903,1755642438667,-615.45,0.00019452,2]
[380295904,1755642438688,-480.0,0.00019514,2]
[380295905,1755642438711,-379.52883493,0.00019514,2]
[380295906,1755642481270,257.85205398,0.00018149,2]
[380295907,1755642549261,-480.0,0.00019178,2]
[380295908,1755642549284,-1751.57994254,0.00019415,2]
[380295909,1755642549306,-480.0,0.00019514,2]
[380295910,1755642549327,-480.0,0.00019514,2]
[380295911,1755642549351,-480.0,0.00019514,2]
[380295912,1755642549371,-480.0,0.00019514,2]
[380295913,1755642549393,-480.0,0.00019514,2]
[380295914,1755642549415,-480.0,0.00019514,2]
[380295915,1755642549435,-480.0,0.00019514,2]
[380295916,1755642549456,-480.0,0.00019514,2]
[380295917,1755642549477,-480.0,0.00019514,2]
[380295918,1755642549499,-480.0,0.00019514,2]
[380295919,1755642549522,-480.0,0.00019514,2]
[380295920,1755642549543,-480.0,0.00019514,2]
[380295921,1755642549564,-480.0,0.00019514,2]
[380295922,1755642549585,-480.0,0.00019514,2]
[380295923,1755642549607,-480.0,0.00019514,2]
[380295924,1755642549627,-580.47116507,0.00019514,2]
[380295925,1755642549657,-478.52049025,0.00019514,2]
[380295926,1755642549680,-480.79032199,0.00019515,2]
[380295927,1755642549703,-480.0,0.00019515,2]
[380295928,1755642549723,-481.49284257,0.00019515,2]
[380295929,1755642549746,-480.0,0.00019515,2]
[380295930,1755642549767,-480.0,0.00019515,2]
[380295931,1755642549789,-480.0,0.00019515,2]
[380295932,1755642549809,-480.0,0.00019515,2]
[380295933,1755642549830,-480.0,0.00019515,2]
[380295934,1755642549851,-480.0,0.00019515,2]
[380295935,1755642549872,-480.0,0.00019515,2]
[380295936,1755642549892,-480.0,0.00019515,2]
[380295937,1755642549912,-480.0,0.00019515,2]
[380295938,1755642549933,-480.0,0.00019515,2]
[380295939,1755642549953,-480.0,0.00019515,2]
[380295940,1755642549978,-480.0,0.00019515,2]
[380295941,1755642549998,-480.0,0.00019515,2]
[380295942,1755642550020,-480.0,0.00019515,2]
[380295943,1755642550041,-480.0,0.00019515,2]
[380295944,1755642550066,-480.0,0.00019515,2]
[380295945,1755642550088,-480.0,0.00019515,2]
[380295946,1755642550109,-480.0,0.00019515,2]
[380295947,1755642550131,-480.0,0.00019515,2]
[380295948,1755642550152,-480.0,0.00019515,2]
[380295949,1755642550174,-480.0,0.00019515,2]
[380295950,1755642550196,-480.0,0.00019515,2]
[380295951,1755642550219,-480.0,0.00019515,2]
[380295952,1755642550241,-480.0,0.00019515,2]
[380295953,1755642550263,-480.0,0.00019515,2]
[380295954,1755642550284,-480.0,0.00019515,2]
[380295955,1755642550306,-624.14,0.00019515,2]
[380295956,1755642550327,-480.0,0.00019515,2]
[380295957,1755642550348,-480.0,0.00019515,2]
[380295958,1755642550370,-500.0,0.00019515,2]
[380295959,1755642550392,-480.0,0.00019515,2]
[380295960,1755642550414,-480.0,0.00019515,2]
[380295961,1755642550563,-480.0,0.00019515,2]
[380295962,1755642550588,-480.0,0.00019515,2]
[380295963,1755642550612,-480.0,0.00019515,2]
[380295964,1755642550635,-480.0,0.00019515,2]
[380295965,1755642550656,-480.30793992,0.00019515,2]
[380295966,1755642550678,-480.0,0.00019515,2]
[380295967,1755642550700,-480.0,0.00019515,2]
[380295968,1755642550723,-480.0,0.00019515,2]
[380295969,1755642550746,-480.0,0.00019515,2]
[380295970,1755642550770,-480.0,0.00019515,2]
[380295971,1755642550794,-480.0,0.00019515,2]
[380295972,1755642550816,-480.0,0.00019515,2]
[380295973,1755642550838,-480.0,0.00019515,2]
[380295974,1755642550861,-480.0,0.00019515,2]
[380295975,1755642550882,-480.0,0.00019515,2]
[380295976,1755642550904,-480.0,0.00019515,2]
[380295977,1755642550927,-480.0,0.00019515,2]
[380295978,1755642550948,-480.0,0.00019515,2]
[380295979,1755642550971,-480.0,0.00019515,2]
[380295980,1755642550995,-480.0,0.00019515,2]
[380295981,1755642551017,-480.0,0.00019515,2]
[380295982,1755642551039,-480.0,0.00019515,2]
[380295983,1755642551062,-480.0,0.00019515,2]
[380295984,1755642551084,-480.0,0.00019515,2]
[380295985,1755642551106,-480.0,0.00019515,2]
[380295986,1755642551127,-480.0,0.00019516,2]
[380295987,1755642551150,-480.0,0.00019516,2]
[380295988,1755642551172,-480.0,0.00019516,2]
[380295989,1755642551193,-480.0,0.00019516,2]
[380295990,1755642551215,-480.0,0.00019516,2]
[380295991,1755642551237,-480.0,0.00019516,2]
[380295992,1755642551259,-480.0,0.00019516,2]
[380295993,1755642551281,-480.0,0.00019516,2]
[380295994,1755642551303,-480.0,0.00019516,2]
[380295995,1755642551325,-480.0,0.00019516,2]
[380295996,1755642551347,-480.0,0.00019516,2]
[380295997,1755642551369,-208.17525389,0.00019516,2]
[380295998,1755642551391,-480.0,0.00019516,2]
[380295999,1755642551413,-480.0,0.00019516,2]
[380296000,1755642551436,-480.0,0.00019516,2]
[380296001,1755642551458,-460.0,0.00019516,2]
[380296002,1755642551480,-151.0,0.00019516,2]
[380296003,1755642551503,-151.0,0.00019516,2]
[380296004,1755642551530,-151.0,0.00019516,2]
[380296005,1755642551558,-151.0,0.00019516,2]
[380296006,1755642551585,-151.0,0.00019516,2]
[380296007,1755642551610,-151.0,0.00019516,2]
[380296008,1755642551634,-151.0,0.00019516,2]
[380296009,1755642551657,-151.0,0.00019516,2]
[380296010,1755642551680,-151.0,0.00019516,2]
[380296011,1755642551703,-151.0,0.00019516,2]
[380296012,1755642551726,-151.0,0.00019516,2]
[380296013,1755642551747,-151.0,0.00019516,2]
[380296014,1755642551769,-151.0,0.00019516,2]
[380296015,1755642551792,-151.0,0.00019516,2]
[380296016,1755642551814,-151.0,0.00019516,2]
[380296017,1755642551837,-916.0,0.00019516,2]
[380296018,1755642551860,-152.21211499,0.00019516,2]
[380296019,1755642551883,-151.0,0.00019516,2]
[380296020,1755642551904,-151.0,0.00019516,2]
[380296021,1755642551925,-151.0,0.00019516,2]
[380296022,1755642551946,-151.0,0.00019516,2]
[380296023,1755642551967,-228.91242582,0.00019516,2]
[380296024,1755642551992,-151.0,0.00019516,2]
[380296025,1755642552015,-151.0,0.00019516,2]
[380296026,1755642552037,-151.0,0.00019516,2]
[380296027,1755642552062,-151.0,0.00019516,2]
[380296028,1755642552083,-158.7577131,0.00019521,2]
[380296029,1755642552106,-151.0,0.00019521,2]
[380296030,1755642552127,-151.0,0.00019521,2]
[380296031,1755642552148,-245.0,0.00019521,2]
[380296032,1755642552168,-151.55192868,0.00019521,2]
[380296033,1755642552189,-151.0,0.00019521,2]
[380296034,1755642552211,-151.0,0.00019521,2]
[380296035,1755642552233,-151.0,0.00019521,2]
[380296036,1755642552254,-151.0,0.00019521,2]
[380296037,1755642552276,-151.0,0.00019521,2]
[380296038,1755642552298,-151.0,0.00019521,2]
[380296039,1755642552321,-151.0,0.00019521,2]
[380296040,1755642552352,-500.0,0.00019554,2]
[380296041,1755642552376,-190.3779078,0.00019554,2]
[380296042,1755642552402,-500.0,0.00019554,2]
[380296043,1755642552430,-500.03596888,0.00019554,2]
[380296044,1755642552454,-500.0,0.00019554,2]
[380296045,1755642552479,-500.0,0.00019554,2]
[380296046,1755642552503,-500.0,0.00019554,2]
[380296047,1755642552528,-500.0,0.00019554,2]
[380296048,1755642552552,-500.0,0.00019554,2]
[380296049,1755642552577,-500.0,0.00019554,2]
[380296050,1755642552601,-500.0,0.00019554,2]
[380296051,1755642552625,-500.0,0.00019554,2]
[380296052,1755642552648,-500.0,0.00019554,2]
[380296053,1755642552671,-500.0,0.00019554,2]
[380296054,1755642552694,-240.02356909,0.00019554,2]
[380296055,1755642552718,-500.0,0.00019554,2]
[380296056,1755642552741,-500.0,0.00019554,2]
[380296057,1755642552764,-500.0,0.00019554,2]
[380296058,1755642552788,-500.0,0.00019554,2]
[380296059,1755642552812,-500.0,0.00019554,2]
[380296060,1755642552837,-500.0,0.00019554,2]
[380296061,1755642552862,-500.0,0.00019554,2]
[380296062,1755642552885,-500.0,0.00019554,2]
[380296063,1755642552908,-500.0,0.00019554,2]
[380296064,1755642552930,-500.0,0.00019554,2]
[380296065,1755642552955,-500.0,0.00019554,2]
[380296066,1755642552980,-500.0,0.00019554,2]
[380296067,1755642553002,-500.0,0.00019554,2]
[380296068,1755642553024,-500.0,0.00019554,2]
[380296069,1755642553047,-500.0,0.00019554,2]
[380296070,1755642553070,-500.0,0.00019554,2]
[380296071,1755642553091,-250.0,0.00019554,2]
[380296072,1755642553113,-500.0,0.00019554,2]
[380296073,1755642553135,-500.0,0.00019554,2]
[380296074,1755642553156,-500.0,0.00019554,2]
[380296075,1755642553177,-500.0,0.00019554,2]
[380296076,1755642553200,-500.0,0.00019554,2]
[380296077,1755642553222,-579.51386638,0.00019554,2]
[380296078,1755642553244,-500.0,0.00019554,2]
[380296079,1755642553266,-500.0,0.00019554,2]
[380296080,1755642553288,-500.0,0.00019554,2]
[380296081,1755642553310,-183.88215313,0.00019554,2]
[380296082,1755642553332,-500.0,0.00019554,2]
[380296083,1755642553354,-338.11535238,0.00019554,2]
[380296084,1755642553376,-500.0,0.00019554,2]
[380296085,1755642553399,-500.0,0.00019554,2]
[380296086,1755642553421,-260.83651947,0.00019554,2]
[380296087,1755642553442,-170.77675771,0.00019554,2]
[380296088,1755642553463,-480.0,0.00019555,2]
[380296089,1755642553483,-480.0,0.00019555,2]
[380296090,1755642553503,-480.0,0.00019555,2]
[380296091,1755642553524,-480.0,0.00019555,2]
[380296092,1755642553546,-480.0,0.00019555,2]
[380296093,1755642553567,-480.0,0.00019555,2]
[380296094,1755642553588,-480.0,0.00019555,2]
[380296095,1755642553610,-480.0,0.00019555,2]
[380296096,1755642553630,-480.0,0.00019555,2]
[380296097,1755642553651,-480.0,0.00019555,2]
[380296098,1755642553673,-480.0,0.00019555,2]
[380296099,1755642553695,-480.0,0.00019555,2]
[380296100,1755642553717,-480.0,0.00019555,2]
[380296101,1755642553739,-480.0,0.00019555,2]
[380296102,1755642553761,-480.0,0.00019555,2]
[380296103,1755642553782,-480.49266233,0.00019555,2]
[380296104,1755642553804,-480.0,0.00019555,2]
[380296105,1755642553825,-480.0,0.00019555,2]
[380296106,1755642553847,-480.0,0.00019555,2]
[380296107,1755642553868,-219.2097178,0.00019555,2]
[380296108,1755642553889,-480.0,0.00019555,2]
[380296109,1755642553910,-480.0,0.00019555,2]
[380296110,1755642553931,-440.80135216,0.00019555,2]
[380296111,1755642553953,-417.65297657,0.00019555,2]
[380296112,1755642567126,-480.0,0.00019178,2]
[380296113,1755642567148,-480.0,0.00019452,2]
[380296114,1755642567170,-480.0,0.00019514,2]
[380296115,1755642567191,-480.0,0.00019515,2]
[380296116,1755642567212,-480.0,0.00019515,2]
[380296117,1755642567233,-480.0,0.00019515,2]
[380296118,1755642567255,-178.42984027,0.00019555,2]
[380296119,1755642567276,-480.0,0.00019555,2]
[380296120,1755642567299,-480.0,0.00019555,2]
[380296121,1755642567323,-343.39419591,0.00019555,2]
[380296122,1755642567344,-480.0,0.00019555,2]
[380296123,1755642567365,-480.0,0.00019555,2]
[380296124,1755642567387,-480.0,0.00019555,2]
[380296125,1755642567407,-230.66124184,0.00019555,2]
[380296126,1755642567426,-480.0,0.00019555,2]
[380296127,1755642567447,-480.0,0.00019555,2]
[380296128,1755642567468,-363.07370686,0.00019555,2]
[380296129,1755642567492,-480.0,0.00019555,2]
[380296130,1755642567516,-480.0,0.00019555,2]
[380296131,1755642567538,-480.0,0.00019555,2]
[380296132,1755642567557,-480.0,0.00019555,2]
[380296133,1755642567578,-480.0,0.00019555,2]
[380296134,1755642567601,-480.0,0.00019555,2]
[380296135,1755642567621,-480.0,0.00019555,2]
[380296136,1755642567643,-500.0,0.00019555,2]
[380296137,1755642567663,-480.0,0.00019555,2]
[380296138,1755642567683,-480.0,0.00019555,2]
[380296139,1755642567704,-480.0,0.00019555,2]
[380296140,1755642567724,-480.0,0.00019555,2]
[380296141,1755642567745,-480.0,0.00019555,2]
[380296142,1755642567765,-480.0,0.00019555,2]
[380296143,1755642567786,-480.0,0.00019555,2]
[380296144,1755642567807,-277.54039981,0.00019555,2]
[380296145,1755642567828,-480.0,0.00019555,2]
[380296146,1755642567848,-480.0,0.00019555,2]
[380296147,1755642567869,-460.4852786,0.00019555,2]
[380296148,1755642567891,-480.0,0.00019555,2]
[380296149,1755642567911,-480.0,0.00019555,2]
[380296150,1755642567933,-480.0,0.00019555,2]
[380296151,1755642567954,-480.0,0.00019555,2]
[380296152,1755642567973,-460.22144188,0.00019555,2]
[380296153,1755642567997,-500.0,0.00019555,2]
[380296154,1755642568017,-480.0,0.00019555,2]
[380296155,1755642568038,-461.05146342,0.00019555,2]
[380296156,1755642568058,-480.0,0.00019555,2]
[380296157,1755642568080,-480.0,0.00019555,2]
[380296158,1755642568103,-480.0,0.00019555,2]
[380296159,1755642568124,-480.0,0.00019555,2]
[380296160,1755642568145,-480.0,0.00019555,2]
[380296161,1755642568165,-480.0,0.00019555,2]
[380296162,1755642568187,-480.0,0.00019555,2]
[380296163,1755642568208,-579.70187639,0.00019555,2]
[380296164,1755642568229,-480.0,0.00019555,2]
[380296165,1755642568251,-480.0,0.00019555,2]
[380296166,1755642568273,-500.0,0.00019555,2]
[380296167,1755642568292,-481.3029912,0.00019558,2]
[380296168,1755642568313,-480.0,0.00019558,2]
[380296169,1755642568334,-480.0,0.00019558,2]
[380296170,1755642568354,-480.0,0.00019558,2]
[380296171,1755642568374,-480.0,0.00019558,2]
[380296172,1755642568393,-480.0,0.00019558,2]
[380296173,1755642568414,-480.0,0.00019558,2]
[380296174,1755642568433,-480.0,0.00019558,2]
[380296175,1755642568465,-463.79630478,0.00019558,2]
[380296176,1755642568487,-480.0,0.00019558,2]
[380296177,1755642568513,-300.0,0.00019558,20]
[380296178,1755642568538,-300.0,0.00019558,20]
[380296179,1755642568565,-300.0,0.00019558,20]
[380296180,1755642568589,-300.0,0.00019558,20]
[380296181,1755642568614,-300.0,0.00019558,20]
[380296182,1755642568640,-300.0,0.00019558,20]
[380296183,1755642568666,-300.0,0.00019558,20]
[380296184,1755642568690,-300.0,0.00019558,20]
[380296185,1755642568716,-300.0,0.00019558,20]
[380296186,1755642568741,-300.0,0.00019558,20]
[380296187,1755642568766,-300.0,0.00019558,20]
[380296188,1755642568792,-300.0,0.00019558,20]
[380296189,1755642568816,-300.0,0.00019558,20]
[380296190,1755642568841,-300.0,0.00019558,20]
[380296191,1755642568865,-300.0,0.00019558,20]
[380296192,1755642568890,-300.0,0.00019558,20]
[380296193,1755642568914,-300.0,0.00019558,20]
[380296194,1755642568935,-480.0,0.00019558,2]
[380296195,1755642568957,-500.0,0.00019558,2]
[380296196,1755642568987,-480.0,0.00019558,2]
[380296197,1755642569027,-582.81774782,0.00019558,2]
[380296198,1755642569070,-480.0,0.00019558,2]
[380296199,1755642569097,-481.85146587,0.00019558,2]
[380296200,1755642569118,-480.0,0.00019558,2]
[380296201,1755642569140,-480.0,0.00019558,2]
[380296202,1755642569163,-480.0,0.00019558,2]
[380296203,1755642569184,-480.0,0.00019558,2]
[380296204,1755642569209,-300.0,0.00019561,20]
[380296205,1755642569235,-300.0,0.00019561,20]
[380296206,1755642569259,-300.0,0.00019561,20]
[380296207,1755642569282,-615.45,0.00019726,2]
[380296208,1755642569304,-480.0,0.00019726,2]
[380296209,1755642569325,-480.0,0.00019788,2]
[380296210,1755642569347,-480.0,0.00019788,2]
[380296211,1755642569368,-480.0,0.00019788,2]
[380296212,1755642569389,-480.0,0.00019788,2]
[380296213,1755642569552,-529.16,0.00019788,2]
[380296214,1755642569575,-480.0,0.00019788,2]
[380296215,1755642569596,-480.0,0.00019789,2]
[380296216,1755642569617,-480.0,0.00019789,2]
[380296217,1755642569637,-480.0,0.00019789,2]
[380296218,1755642569658,-480.0,0.00019789,2]
[380296219,1755642569680,-480.0,0.00019789,2]
[380296220,1755642569701,-480.0,0.00019789,2]
[380296221,1755642569726,-480.0,0.00019789,2]
[380296222,1755642569747,-480.0,0.00019789,2]
[380296223,1755642569768,-480.0,0.00019789,2]
[380296224,1755642569789,-480.0,0.00019789,2]
[380296225,1755642569810,-480.0,0.00019789,2]
[380296226,1755642569831,-480.0,0.00019789,2]
[380296227,1755642569851,-480.0,0.00019789,2]
[380296228,1755642569872,-480.0,0.00019789,2]
[380296229,1755642569893,-480.0,0.00019789,2]
[380296230,1755642569914,-480.0,0.00019789,2]
[380296231,1755642569937,-480.0,0.00019789,2]
[380296232,1755642569959,-480.0,0.00019789,2]
[380296233,1755642569982,-480.0,0.00019789,2]
[380296234,1755642570003,-480.0,0.00019789,2]
[380296235,1755642570025,-153.91704026,0.0001979,2]
[380296236,1755642570047,-151.0,0.0001979,2]
[380296237,1755642570074,-151.0,0.0001979,2]